bitfinex/quotes_SOLUSD_20241022
["timestamp","ask_amount","ask_price","bid_price","bid_amount"]
[1729608974190,6.99730528,170.26,170.19,70.0]
[1729608974384,6.99730528,170.26,170.2,20.0]
[1729608975408,6.99730528,170.26,170.15,70.0]
[1729608975710,6.99730528,170.26,170.17,70.0]
[1729608976806,6.99730528,170.26,170.16,20.0]
[1729608977183,6.99730528,170.26,170.13,29.8870489]
[1729608977484,12.87090528,170.26,170.12,10.76439779]
[1729608977688,12.87090528,170.26,170.11,78.46793217]
[1729608977892,6.99730528,170.26,170.11,78.46793217]
[1729608978701,6.99730528,170.26,170.12,27.46793217]
[1729608978892,12.87060528,170.26,170.12,27.46793217]
[1729608979513,6.99730528,170.26,170.15,20.0]
[1729608980085,21.3495,170.25,170.13,20.0]
[1729608981214,27.2232,170.25,170.13,20.0]
[1729608981395,21.3495,170.25,170.13,20.0]
[1729608982310,5.8746,170.23,170.12,7.46793217]
[1729608982512,5.8749,170.22,170.11,6.10885198]
[1729608982817,28.4933,170.2,170.11,6.10885198]
[1729608983525,22.6179,170.2,170.11,35.99590088]
[1729608984803,22.6179,170.2,170.12,20.0]
[1729608985417,22.6179,170.2,170.12,28.39570994]
[1729608986020,22.6179,170.2,170.12,20.0]
[1729608987308,22.6179,170.2,170.11,6.10885198]
[1729608987527,29.652784,170.19,170.11,6.10885198]
[1729608987902,23.776884,170.19,170.11,6.10885198]
[1729608989527,15.9597,170.18,170.11,6.10885198]
[1729608989829,23.776884,170.17,170.11,6.10885198]
[1729608990209,23.776884,170.12,169.94,70.0]
[1729608990406,6.6635,170.11,169.98,70.0]
[1729608990627,6.6635,170.11,170.0,29.8870489]
[1729608991825,6.6635,170.11,170.01,20.0]
[1729608993733,6.6635,170.11,169.97,29.8870489]
[1729608994117,23.776884,170.1,169.95,14.48156929]
[1729608994409,23.776884,170.1,169.95,6.64626923]
[1729608994616,23.776884,170.08,169.94,6.13992082]
[1729608994814,23.776884,170.08,169.93,25.37650624]
[1729608995841,23.776884,170.08,169.94,20.0]
[1729608996028,15.1603,170.09,169.96,20.0]
[1729608996335,15.1603,170.09,169.96,27.9139155]
[1729608996632,15.1603,170.09,169.99,70.0]
[1729608996834,15.1603,170.09,170.01,29.8870489]
[1729608997018,15.1603,170.09,170.02,20.0]
[1729609000218,16.247,170.13,170.04,49.8870489]
[1729609003638,15.6056,170.18,170.08,20.0]
[1729609004243,15.6056,170.18,170.1,20.0]
[1729609005049,15.6056,170.18,170.1,49.8870489]
[1729609007617,15.6056,170.18,170.08,20.0]
[1729609012855,15.6056,170.18,170.08,90.0]
[1729609015940,15.6056,170.18,170.11,20.0]
[1729609018432,15.6056,170.18,170.11,38.65557835]
[1729609019846,15.6056,170.18,170.11,20.0]
[1729609020028,15.6056,170.18,170.09,38.65557835]
[1729609020225,15.6056,170.18,170.1,20.0]
[1729609020454,15.6056,170.18,170.05,26.56949385]
[1729609020830,15.6056,170.18,170.06,70.0]
[1729609021038,15.6056,170.18,170.07,18.60427835]
[1729609021754,23.776884,170.15,170.03,18.65557835]
[1729609021963,23.776884,170.15,170.01,18.65557835]
[1729609022262,5.8783,170.12,169.99,32.70106917]
[1729609022459,23.776884,170.13,169.99,32.70106917]
[1729609022638,23.876884,170.13,169.99,32.70106917]
[1729609022838,29.754784,170.13,169.99,32.70106917]
[1729609023065,23.776884,170.11,169.99,32.70106917]
[1729609023260,29.754784,170.13,169.99,32.70106917]
[1729609023574,23.776884,170.09,169.99,14.04549082]
[1729609023741,23.776884,170.09,169.95,70.0]
[1729609023935,23.776884,170.09,169.96,26.56949385]
[1729609024142,22.3611,170.1,169.98,18.65557835]
[1729609024448,22.3611,170.1,169.99,107.79656359]
[1729609024773,15.8337,170.1,170.01,70.0]
[1729609025071,6.5274,170.13,170.02,57.79656359]
[1729609025756,6.5274,170.13,170.04,20.0]
[1729609025964,6.5274,170.13,170.04,27.9139155]
[1729609026955,6.5274,170.13,170.06,20.0]
[1729609027652,15.8337,170.14,170.06,20.0]
[1729609027835,15.8337,170.14,170.05,20.0]
[1729609028535,15.8337,170.14,170.05,119.88264809]
[1729609028738,15.8337,170.14,170.05,127.79656359]
[1729609029575,15.8135,170.14,170.05,127.79656359]
[1729609029877,15.8135,170.14,170.09,20.0]
[1729609030380,6.3306,170.17,170.09,20.0]
[1729609030584,6.3306,170.17,170.07,20.0]
[1729609031080,6.3306,170.17,170.09,20.0]
[1729609031893,6.3306,170.17,170.06,20.0]
[1729609032563,16.1726,170.16,170.06,20.0]
[1729609032998,16.1726,170.16,170.05,7.9139155]
[1729609033670,16.1726,170.16,170.06,70.0]
[1729609034178,16.1726,170.16,170.06,77.9139155]
[1729609034478,16.1726,170.16,170.07,20.0]
[1729609035265,15.5801,170.21,170.09,20.0]
[1729609035982,21.4552,170.21,170.09,20.0]
[1729609036194,5.8756,170.2,170.07,20.0]
[1729609037285,23.776884,170.19,170.07,20.0]
[1729609038682,15.5801,170.21,170.09,20.0]
[1729609039364,14.5801,170.21,170.09,20.0]
[1729609040084,23.776884,170.2,170.09,20.0]
[1729609040967,6.4259,170.14,170.02,29.88264809]
[1729609041287,6.4259,170.14,170.03,70.0]
[1729609041692,6.4259,170.14,170.02,29.88264809]
[1729609042493,15.4546,170.13,170.02,29.88264809]
[1729609042863,23.776884,170.12,170.02,29.88264809]
[1729609043091,15.4546,170.13,170.02,29.88264809]
[1729609044087,23.776884,170.12,170.02,29.88264809]
[1729609044491,23.776884,170.12,169.99,36.01659198]
[1729609045277,23.776884,170.12,169.99,99.88264809]
[1729609045472,23.776884,170.12,169.99,107.00646046]
[1729609045793,23.776884,170.12,170.0,20.0]
[1729609045994,15.4546,170.13,170.03,20.0]
[1729609051375,15.4546,170.13,170.06,20.0]
[1729609051996,16.1341,170.17,170.06,20.0]
[1729609052497,16.1341,170.17,170.09,20.0]
[1729609053992,16.1341,170.17,170.09,19.93199658]
[1729609054375,16.1341,170.17,170.04,70.0]
[1729609054575,16.1341,170.17,170.04,88.66227436]
[1729609054794,16.1341,170.17,170.04,70.0]
[1729609054995,16.1341,170.17,170.06,88.66227436]
[1729609055205,16.1341,170.17,170.08,18.66227436]
[1729609056003,16.1341,170.17,170.09,20.0]
[1729609056177,16.1341,170.17,170.07,20.0]
[1729609057305,16.1341,170.17,170.08,18.66227436]
[1729609057517,16.1341,170.17,170.09,20.0]
[1729609059719,16.1341,170.17,170.06,18.66227436]
[1729609060210,23.776884,170.16,170.04,18.66227436]
[1729609061293,23.776884,170.16,170.01,70.0]
[1729609061609,29.653784,170.16,170.02,32.50227436]
[1729609061919,15.1798,170.15,170.02,32.50227436]
[1729609062210,23.776884,170.12,170.02,13.84]
[1729609062591,23.776884,170.1,170.02,13.84]
[1729609062800,23.776884,170.1,169.97,95.07627558]
[1729609063189,23.776884,170.1,169.99,18.66227436]
[1729609063993,0.1,170.08,169.93,10.77650624]
[1729609064321,23.776884,170.05,169.93,29.4387806]
[1729609065929,8.01961146,170.26,170.12,70.0]
[1729609066230,6.3493,170.41,169.94,24.04516503]
[1729609066231,0.6295642,170.38,170.23,18.76227436]
[1729609066514,0.6295642,170.38,170.3,18.66227436]
[1729609066515,0.5,170.37,170.3,18.66227436]
[1729609066821,0.5,170.36,170.3,18.66227436]
[1729609067113,0.6295642,170.38,170.3,18.76227436]
[1729609067114,0.5,170.35,170.3,18.76227436]
[1729609067697,0.5,170.35,170.33,18.66227436]
[1729609068200,0.5,170.35,170.34,20.1]
[1729609068395,0.5,170.35,170.34,49.86806955]
[1729609068595,0.5,170.35,170.34,49.76806955]
[1729609068819,0.5,170.35,170.33,0.1]
[1729609069195,0.5,170.35,170.32,20.1]
[1729609069914,0.5,170.35,170.33,0.1]
[1729609070301,0.6295642,170.38,170.35,0.1]
[1729609070524,0.6295642,170.38,170.32,20.0]
[1729609070890,0.6295642,170.38,170.32,20.1]
[1729609072140,0.6295642,170.38,170.32,20.0]
[1729609072417,0.6295642,170.38,170.24,18.05668583]
[1729609072418,0.1,170.26,170.22,8.1747]
[1729609072594,0.1,170.26,170.08,31.71854896]
[1729609072595,1.17395329,170.26,170.09,70.0]
[1729609072796,1.17395329,170.26,170.14,29.76806955]
[1729609073098,6.90763602,170.46,170.43,70.0]
[1729609073305,6.90763602,170.46,170.37,16.3071]
[1729609073306,6.90763602,170.46,170.38,70.0]
[1729609073605,6.90763602,170.46,170.42,29.76806955]
[1729609073995,6.90763602,170.46,170.37,46.07516955]
[1729609074196,6.90763602,170.46,170.38,70.0]
[1729609074420,6.90763602,170.46,170.41,48.32953767]
[1729609074799,6.90763602,170.46,170.34,70.0]
[1729609075022,6.90763602,170.46,170.37,48.32953767]
[1729609076023,12.94483602,170.46,170.37,48.32953767]
[1729609079907,0.1,170.44,170.37,48.32953767]
[1729609080227,0.1,170.44,170.34,48.32953767]
[1729609080526,23.776884,170.43,170.34,48.32953767]
[1729609080842,20.1,170.44,170.34,48.32953767]
[1729609081126,20.0,170.43,170.34,48.32953767]
[1729609081329,20.1,170.43,170.34,48.32953767]
[1729609081520,23.776884,170.42,170.34,48.32953767]
[1729609081718,20.0,170.43,170.34,48.32953767]
[1729609081919,0.1,170.41,170.34,48.32953767]
[1729609082133,0.1,170.41,170.31,48.32953767]
[1729609082316,23.976884,170.42,170.31,48.32953767]
[1729609082632,0.1,170.41,170.31,48.32953767]
[1729609082839,20.1,170.39,170.31,48.32953767]
[1729609083131,23.776884,170.38,170.28,48.32953767]
[1729609083303,0.1,170.37,170.19,70.0]
[1729609083498,23.876884,170.36,170.26,48.32953767]
[1729609083703,23.876884,170.36,170.22,48.32953767]
[1729609083923,0.1,170.34,170.22,48.32953767]
[1729609084111,20.1,170.35,170.22,48.32953767]
[1729609084531,23.876884,170.34,170.22,48.32953767]
[1729609085423,23.776884,170.34,170.22,48.32953767]
[1729609085811,23.876884,170.34,170.22,48.32953767]
[1729609086022,6.1563,170.33,170.22,48.32953767]
[1729609086436,23.776884,170.32,170.22,48.32953767]
[1729609086924,23.776884,170.32,170.2,20.0]
[1729609087830,23.776884,170.3,170.19,48.32953767]
[1729609090123,23.876884,170.3,170.19,48.32953767]
[1729609090346,23.776884,170.3,170.19,48.32953767]
[1729609090824,23.776884,170.28,170.15,48.32953767]
[1729609091023,23.776884,170.28,170.16,20.0]
[1729609091243,0.1,170.31,170.16,20.0]
[1729609091439,12.1275,170.33,170.16,20.0]
[1729609091440,20.0,170.32,170.19,20.0]
[1729609091639,6.2563,170.33,170.21,68.32953767]
[1729609091640,6.1563,170.33,170.21,68.32953767]
[1729609092837,6.1563,170.33,170.24,68.32953767]
[1729609093247,5.8687,170.4,170.24,68.32953767]
[1729609093248,6.3367,170.4,170.24,68.32953767]
[1729609093438,6.3367,170.4,170.24,138.32953767]
[1729609094024,6.3367,170.4,170.27,20.0]
[1729609094544,6.3367,170.4,170.27,68.32953767]
[1729609097544,23.776884,170.39,170.27,68.32953767]
[1729609097750,29.746084,170.39,170.24,48.32953767]
[1729609098052,23.776884,170.39,170.24,118.32953767]
[1729609098436,6.3367,170.4,170.24,118.32953767]
[1729609099056,6.3367,170.4,170.25,20.0]
[1729609099450,23.776884,170.39,170.24,118.32953767]
[1729609100333,23.876884,170.39,170.24,48.32953767]
[1729609100840,23.976884,170.39,170.24,48.32953767]
[1729609101359,0.1,170.38,170.24,48.32953767]
[1729609101659,20.0,170.38,170.24,48.32953767]
[1729609101847,20.1,170.36,170.24,48.32953767]
[1729609102041,23.776884,170.35,170.24,48.32953767]
[1729609102550,23.776884,170.35,170.21,48.32953767]
[1729609104876,23.976884,170.35,170.19,15.438]
[1729609105081,0.1,170.31,170.16,6.1375]
[1729609105242,23.876884,170.29,170.13,64.51823767]
[1729609105741,29.849184,170.29,170.13,64.51823767]
[1729609105943,23.776884,170.24,170.1,48.32953767]
[1729609106155,23.876884,170.24,170.1,48.32953767]
[1729609106445,23.876884,170.24,170.07,86.1887]
[1729609106446,23.776884,170.23,170.08,29.85173302]
[1729609107450,0.1,170.29,170.11,29.85173302]
[1729609107657,20.0,170.29,170.14,29.85173302]
[1729609108364,20.1,170.29,170.14,48.4738991]
[1729609108551,26.0723,170.29,170.14,48.4738991]
[1729609108749,23.776884,170.28,170.14,48.4738991]
[1729609108955,23.876884,170.28,170.14,48.4738991]
[1729609109172,20.0,170.29,170.14,48.4738991]
[1729609109468,6.3616,170.3,170.17,48.4738991]
[1729609109851,6.4616,170.3,170.17,48.4738991]
[1729609110473,23.776884,170.29,170.17,48.4738991]
[1729609110651,23.776884,170.27,170.14,48.4738991]
[1729609111654,23.776884,170.28,170.14,48.4738991]
[1729609112270,23.776884,170.29,170.17,48.4738991]
[1729609112773,6.4268,170.35,170.2,118.4738991]
[1729609113066,6.4268,170.35,170.18,16.2036]
[1729609113067,6.4268,170.35,170.23,48.4738991]
[1729609114783,6.4268,170.35,170.26,48.4738991]
[1729609116467,6.4501,170.39,170.29,48.4738991]
[1729609117665,6.4501,170.39,170.26,48.4738991]
[1729609119054,5.8702,170.35,170.18,86.2036]
[1729609119386,29.647484,170.34,170.18,16.2036]
[1729609119991,23.876884,170.32,170.18,16.2036]
[1729609120287,5.8724,170.29,170.18,16.2036]
[1729609120585,6.1517,170.29,170.18,16.2036]
[1729609121372,23.776884,170.25,170.16,48.4738991]
[1729609121567,23.776884,170.25,170.13,48.4738991]
[1729609121763,23.776884,170.26,170.13,48.4738991]
[1729609122082,29.650384,170.26,170.13,48.4738991]
[1729609122391,23.776884,170.23,170.13,48.4738991]
[1729609122990,29.651284,170.23,170.13,48.4738991]
[1729609123294,23.776884,170.23,170.13,48.4738991]
[1729609123686,23.776884,170.23,170.09,15.4879]
[1729609123687,41.546884,170.23,170.1,48.4738991]
[1729609123995,29.751284,170.23,170.1,48.4738991]
[1729609124169,29.651284,170.23,170.1,48.4738991]
[1729609124368,29.751284,170.23,170.1,48.4738991]
[1729609125697,29.651284,170.23,170.1,48.4738991]
[1729609125998,0.1,170.23,170.1,48.4738991]
[1729609126295,23.776884,170.22,170.1,48.4738991]
[1729609127993,43.776884,170.17,170.04,48.4738991]
[1729609128598,23.776884,170.18,170.04,48.4738991]
[1729609129181,25.9761,170.18,170.04,48.4738991]
[1729609129386,23.776884,170.17,170.04,48.4738991]
[1729609129581,20.0,170.18,170.04,48.4738991]
[1729609129782,23.776884,170.18,170.04,48.4738991]
[1729609130389,23.776884,170.18,170.06,29.86382367]
[1729609131375,12.1467167,170.21,170.09,29.86382367]
[1729609131577,6.0412,170.28,170.15,29.86382367]
[1729609131780,6.0412,170.28,170.18,29.86382367]
[1729609132202,17.77,170.33,170.12,115.64432367]
[1729609132203,2.00953614,170.32,170.27,29.86382367]
[1729609132408,6.12670328,170.33,170.27,48.40987392]
[1729609132620,6.12670328,170.33,170.24,48.40987392]
[1729609133790,5.8702,170.36,170.24,48.40987392]
[1729609133982,20.0,170.36,170.24,48.40987392]
[1729609134183,20.1,170.36,170.24,48.40987392]
[1729609134420,25.9701,170.36,170.24,48.40987392]
[1729609134819,25.8701,170.36,170.24,48.40987392]
[1729609135111,25.9701,170.36,170.24,48.40987392]
[1729609135420,23.776884,170.35,170.19,70.17457392]
[1729609136232,20.0,170.36,170.2,70.0]
[1729609136413,20.0,170.36,170.23,48.40987392]
[1729609136619,25.97,170.36,170.23,48.40987392]
[1729609136817,20.1,170.36,170.23,48.40987392]
[1729609137128,0.1,170.36,170.19,70.17457392]
[1729609137328,23.776884,170.32,170.19,70.17457392]
[1729609137513,29.648284,170.32,170.19,70.17457392]
[1729609137714,0.1,170.35,170.19,70.17457392]
[1729609137715,23.776884,170.3,170.19,70.17457392]
[1729609138147,23.776884,170.3,170.19,63.67767392]
[1729609138334,6.193,170.29,170.19,15.2678]
[1729609138862,23.776884,170.28,170.19,15.2678]
[1729609139156,23.776884,170.28,170.16,48.40987392]
[1729609140340,6.193,170.29,170.16,48.40987392]
[1729609140930,23.776884,170.28,170.16,48.40987392]
[1729609141552,23.776884,170.28,170.17,20.0]
[1729609142339,6.193,170.29,170.17,20.0]
[1729609142541,12.0656,170.29,170.17,20.0]
[1729609142755,5.8741,170.24,170.14,15.0435]
[1729609143056,5.8744,170.23,170.13,48.40987392]
[1729609143257,5.8744,170.23,170.11,6.3229]
[1729609143455,20.0,170.25,170.11,6.3229]
[1729609143952,29.650684,170.25,170.11,6.3229]
[1729609144162,23.776884,170.23,170.11,6.3229]
[1729609144337,23.776884,170.23,170.12,20.0]
[1729609144737,5.8737,170.25,170.12,20.0]
[1729609144738,23.776884,170.24,170.12,20.0]
[1729609144936,20.9745,170.29,170.12,20.0]
[1729609144937,6.3177,170.34,170.18,20.0]
[1729609145149,6.3177,170.34,170.2,48.40987392]
[1729609145352,5.8719,170.31,170.2,48.40987392]
[1729609145536,6.12916498,170.33,170.2,48.40987392]
[1729609145848,5.8716,170.31,170.2,48.40987392]
[1729609146748,6.12916498,170.33,170.18,20.0]
[1729609146953,6.12916498,170.33,170.21,20.0]
[1729609148165,5.8713,170.32,170.21,20.0]
[1729609148536,5.8716,170.31,170.2,48.40987392]
[1729609148767,23.776884,170.3,170.2,48.40987392]
[1729609149055,6.12916498,170.33,170.2,48.40987392]
[1729609149375,23.79916498,170.33,170.2,48.40987392]
[1729609149561,5.8721,170.3,170.2,48.40987392]
[1729609149934,5.8721,170.3,170.17,48.40987392]
[1729609150353,29.648284,170.32,170.18,20.0]
[1729609152356,29.648284,170.32,170.17,48.40987392]
[1729609152357,23.776884,170.32,170.2,20.0]
[1729609152664,6.12916498,170.33,170.2,90.0]
[1729609152955,5.8713,170.32,170.22,29.81349026]
[1729609153257,5.8713,170.32,170.19,20.0]
[1729609153947,23.776884,170.32,170.21,29.81349026]
[1729609154152,6.12916498,170.33,170.22,20.0]
[1729609154460,0.1,170.41,170.22,20.0]
[1729609154461,6.90763602,170.46,170.35,93.776884]
[1729609154682,6.90763602,170.46,170.35,99.81349026]
[1729609154961,6.90763602,170.46,170.29,29.81349026]
[1729609154962,0.1,170.44,170.32,29.81349026]
[1729609155136,8.9148239,170.46,170.3,20.0]
[1729609155337,26.6848239,170.46,170.3,20.0]
[1729609155536,5.868,170.42,170.29,29.81349026]
[1729609155760,5.8682,170.41,170.27,20.0]
[1729609156166,5.968,170.42,170.26,45.47309026]
[1729609156362,25.8682,170.41,170.28,48.40131926]
[1729609156539,5.869,170.39,170.25,48.40131926]
[1729609156734,20.1,170.43,170.25,118.40131926]
[1729609156968,0.1,170.41,170.25,48.40131926]
[1729609157172,5.869,170.39,170.25,48.40131926]
[1729609157370,23.776884,170.38,170.25,48.40131926]
[1729609158367,23.776884,170.38,170.26,20.0]
[1729609159150,5.8696,170.37,170.26,20.0]
[1729609159373,5.8696,170.37,170.25,48.40131926]
[1729609159559,36.150884,170.38,170.25,48.40131926]
[1729609159944,6.5048,170.38,170.25,48.40131926]
[1729609160444,23.776884,170.37,170.25,48.40131926]
[1729609161950,29.646484,170.37,170.25,48.40131926]
[1729609162956,5.8699,170.36,170.23,20.0]
[1729609163357,5.8713,170.32,170.23,20.0]
[1729609163555,41.446884,170.37,170.18,70.0]
[1729609163556,5.8717,170.31,170.18,48.40131926]
[1729609163751,5.8717,170.31,170.19,18.22]
[1729609163955,0.1,170.34,170.19,18.22]
[1729609164166,5.8728,170.28,170.15,48.40131926]
[1729609164396,0.1,170.31,170.15,48.40131926]
[1729609164671,5.8743,170.24,170.12,48.40131926]
[1729609164859,21.88019091,170.23,170.12,66.63131926]
[1729609165056,21.88019091,170.23,170.12,18.23]
[1729609165057,5.8745,170.23,170.12,18.23]
[1729609165246,0.1,170.27,170.12,18.23]
[1729609165247,5.875,170.21,170.12,18.23]
[1729609165568,0.1,170.25,170.09,48.40131926]
[1729609165750,5.8757,170.2,170.09,48.40131926]
[1729609165948,5.8759,170.19,170.09,48.40131926]
[1729609166262,5.8759,170.19,170.06,48.40131926]
[1729609166567,5.8761,170.18,170.06,48.40131926]
[1729609166774,5.877,170.16,170.03,48.40131926]
[1729609167470,29.653684,170.16,170.03,48.40131926]
[1729609168250,5.8774,170.15,170.03,48.40131926]
[1729609168755,23.776884,170.16,170.03,48.40131926]
[1729609169077,5.8775,170.14,170.01,1.94890266]
[1729609169260,23.776884,170.1,169.97,48.40131926]
[1729609169571,29.655784,170.1,169.97,48.40131926]
[1729609169764,5.878,170.13,169.97,118.40131926]
[1729609169965,5.8785,170.11,170.0,48.40131926]
[1729609170156,0.2,170.15,169.98,20.0]
[1729609170473,29.655784,170.1,169.98,20.0]
[1729609170671,23.776884,170.1,169.98,20.0]
[1729609170974,5.8783,170.12,170.0,48.40131926]
[1729609171850,5.8784,170.12,170.0,48.40131926]
[1729609172579,5.8771,170.16,170.03,48.40131926]
[1729609172748,6.2507,170.17,170.04,20.0]
[1729609173373,6.3656,170.23,170.09,48.40131926]
[1729609174058,5.8747,170.22,170.09,48.40131926]
[1729609174867,5.8751,170.21,170.09,48.40131926]
[1729609175172,12.2402,170.23,170.1,20.0]
[1729609175477,5.8747,170.22,170.1,20.0]
[1729609177275,6.3656,170.23,170.12,48.40131926]
[1729609177466,15.0203,170.26,170.15,48.40131926]
[1729609178971,20.8937,170.26,170.15,48.40131926]
[1729609179570,20.8937,170.26,170.13,20.0]
[1729609179984,15.0203,170.26,170.13,20.0]
[1729609181093,5.8737,170.25,170.13,20.0]
[1729609181262,15.0203,170.26,170.13,20.0]
[1729609181583,5.8741,170.24,170.13,20.0]
[1729609182085,5.8745,170.23,170.13,20.0]
[1729609182462,23.776884,170.25,170.13,20.0]
[1729609182781,5.8748,170.22,170.13,20.0]
[1729609183782,23.776884,170.25,170.09,48.40131926]
[1729609183987,23.776884,170.25,170.1,20.0]
[1729609184282,5.8747,170.22,170.1,20.0]
[1729609184482,23.776884,170.25,170.1,20.0]
[1729609184866,5.8753,170.21,170.1,20.0]
[1729609185067,0.1,170.24,170.06,52.74741926]
[1729609185369,5.8761,170.19,170.06,4.3461]
[1729609185882,0.2,170.23,170.06,4.3461]
[1729609186072,5.8767,170.17,170.06,4.3461]
[1729609186270,14.7868,170.22,170.06,4.3461]
[1729609186271,23.776884,170.21,170.06,4.3461]
[1729609186472,5.8758,170.19,170.06,4.3461]
[1729609186793,5.8758,170.19,170.06,24.3461]
[1729609187084,29.944084,170.18,170.06,20.0]
[1729609187483,5.8774,170.15,170.02,20.0]
[1729609187783,29.944084,170.18,170.03,18.24]
[1729609187784,5.8781,170.13,170.03,18.24]
[1729609187993,5.8782,170.12,170.01,29.86303812]
[1729609188199,5.879,170.1,169.96,29.86303812]
[1729609188668,6.2987,170.15,170.05,29.86303812]
[1729609189296,5.8754,170.2,170.05,29.86303812]
[1729609189497,6.6037,170.21,170.06,20.0]
[1729609189795,5.8764,170.18,170.06,20.0]
[1729609190285,6.6037,170.21,170.06,20.0]
[1729609190587,6.6037,170.21,170.09,20.0]
[1729609191295,6.6037,170.21,170.11,29.86303812]
[1729609191782,6.6037,170.21,170.08,20.0]
[1729609191783,12.4791,170.21,170.08,29.86303812]
[1729609191981,5.8754,170.2,170.09,20.0]
[1729609195791,6.6037,170.21,170.09,20.0]
[1729609196100,5.8758,170.19,170.08,29.86303812]
[1729609198294,2.4795,170.21,170.08,29.86303812]
[1729609199407,5.8757,170.2,170.08,29.86303812]
[1729609200580,2.4795,170.21,170.11,29.86303812]
[1729609200902,22.19645953,170.27,170.14,29.86303812]
[1729609201100,5.8738,170.25,170.14,29.86303812]
[1729609201790,6.6493,170.26,170.14,29.86303812]
[1729609201994,5.8743,170.24,170.14,29.86303812]
[1729609202191,5.8748,170.22,170.13,20.0]
[1729609202389,5.8748,170.22,170.12,6.432]
[1729609202584,5.8748,170.22,170.11,29.86303812]
[1729609202784,5.8754,170.2,170.09,20.0]
[1729609203298,23.776884,170.22,170.09,20.0]
[1729609203503,23.776884,170.22,170.08,29.86303812]
[1729609203875,5.8758,170.19,170.08,29.86303812]
[1729609205597,5.8747,170.23,170.09,20.0]
[1729609205809,5.8741,170.24,170.12,20.0]
[1729609205983,6.6493,170.26,170.14,29.86303812]
[1729609206379,5.8737,170.25,170.14,29.86303812]
[1729609207294,6.13389414,170.28,170.17,29.86303812]
[1729609207495,6.4694,170.3,170.2,29.86303812]
[1729609207694,12.00186391,170.35,170.23,29.86303812]
[1729609208296,6.13156391,170.35,170.23,29.86303812]
[1729609208483,6.13156391,170.35,170.23,36.19173812]
[1729609209483,6.13156391,170.35,170.26,29.86303812]
[1729609210283,5.8701,170.36,170.23,36.19173812]
[1729609210487,5.8706,170.34,170.23,6.3287]
[1729609210683,5.8696,170.37,170.23,6.3287]
[1729609211408,5.8696,170.37,170.24,20.0]
[1729609211913,5.8688,170.39,170.24,90.0]
[1729609212286,5.8692,170.38,170.24,90.0]
[1729609212481,21.6632,170.4,170.26,70.0]
[1729609212689,21.6632,170.4,170.26,99.86303812]
[1729609212886,5.8689,170.39,170.26,99.86303812]
[1729609213299,12.00003596,170.38,170.26,99.86303812]
[1729609213608,6.13083596,170.38,170.26,29.86303812]
[1729609213793,12.00003596,170.38,170.26,29.86303812]
[1729609214301,6.13083596,170.38,170.26,29.86303812]
[1729609214603,5.8697,170.37,170.26,29.86303812]
[1729609214811,12.00013596,170.38,170.26,99.86303812]
[1729609217988,6.13083596,170.38,170.26,99.86303812]
[1729609218204,5.8696,170.37,170.26,99.86303812]
[1729609218610,12.00003596,170.38,170.26,99.86303812]
[1729609218907,12.00013596,170.38,170.28,20.0]
[1729609219111,6.13083596,170.38,170.28,20.0]
[1729609219313,6.0739,170.44,170.31,70.0]
[1729609219503,6.12966115,170.43,170.31,70.0]
[1729609219685,6.12966115,170.43,170.32,20.0]
[1729609220010,6.0739,170.44,170.32,20.0]
[1729609220492,5.8675,170.43,170.32,20.0]
[1729609221393,11.9411,170.44,170.32,20.0]
[1729609221591,23.16593602,170.46,170.34,90.0]
[1729609221592,12.77423602,170.46,170.34,90.0]
[1729609221895,12.77423602,170.46,170.33,6.188]
[1729609221896,6.90763602,170.46,170.36,90.0]
[1729609222401,6.90763602,170.46,170.39,20.0]
[1729609223201,6.90763602,170.46,170.37,20.0]
[1729609224009,6.1271667,170.45,170.37,20.0]